[Event "Mentese GM 2019"]
[Site "Mentese"]
[Date "2019.06.24"]
[Round "2.1"]
[White "Bagaturov, Giorgi"]
[Black "Annaberdiev, Meilis"]
[Result "1-0"]
[ECO "A58"]
[WhiteElo "2422"]
[BlackElo "2532"]
[Annotator "ChessBase"]
[PlyCount "105"]
[EventDate "2019.06.24"]
[EventType "schev"]
[EventCountry "TUR"]
[SourceTitle "playchess.com"]
[Source "ChessBase"]
[SourceQuality "1"]
[TimeControl "5400+30"]

1. d4 {[%emt 0:00:30]} Nf6 {[%emt 0:00:30]} 2. Nf3 {[%emt 0:00:00]} g6 {[%emt 0:00:00]} 3. c4 {[%emt 0:00:00]} Bg7 {[%emt 0:00:00]} 4. g3 {[%emt 0:00:30]} O-O {[%emt 0:00:00]} 5. Bg2 {[%emt 0:00:00]} c5 {[%emt 0:00:00]} 6. d5 {[%emt 0:01:00]} b5 {[%emt 0:04:30]} 7. cxb5 {[%emt 0:00:30]} d6 {[%emt 0:00:30]} 8. Nc3 {[%emt 0:01:30]} a6 {[%emt 0:00:30]} 9. bxa6 {[%emt 0:00:30]} Bxa6 {[%emt 0:01:30]} 10. Rb1 {[%emt 0:02:30]} Bc8 {[%emt 0:10:30]} 11. Nd2 {[%emt 0:05:30]} Nbd7 {[%emt 0:05:30]} 12. O-O {[%emt 0:02:30]} Nb6 {[%emt 0:00:30]} 13. Qc2 {[%emt 0:12:30]} h5 {[%emt 0:05:30]} 14. h3 {[%emt 0:08:30]} e6 {[%emt 0:00:30]} 15. dxe6 {[%emt 0:01:30]} Bxe6 {[%emt 0:00:00]} 16. e4 {[%emt 0:13:30]} Qc8 {[%emt 0:21:00]} 17. h4 {[%emt 0:07:30]} Ng4 {[%emt 0:03:30]} 18. Nf3 {[%emt 0:01:30]} Bxa2 {[%emt 0:14:30]} 19. Nxa2 {[%emt 0:02:30]} Rxa2 {[%emt 0:00:30]} 20. Rd1 {[%emt 0:01:30]} c4 {[%emt 0:03:30]} 21. Bf4 {[%emt 0:11:30]} c3 {[%emt 0:06:30]} 22. Bxd6 {[%emt 0:06:31]} Rxb2 {[%emt 0:03:16]} 23. Rxb2 {[%emt 0:00:22]} cxb2 {[%emt 0:00:01]} 24. Qb3 {[%emt 0:00:21]} Qc1 {[%emt 0:00:37]} 25. Ba3 {[%emt 0:03:00]} Rc8 {[%emt 0:08:41]} 26. Ng5 {[%emt 0:04:06]} Qc4 {[%emt 0:01:11]} 27. Qxb6 {[%emt 0:02:26]} Bd4 {[%emt 0:00:56]} 28. Rxd4 {[%emt 0:00:24]} b1=Q+ {[%emt 0:01:50]} 29. Qxb1 {[%emt 0:00:37]} Qxd4 {[%emt 0:00:00]} 30. Qa2 {[%emt 0:01:10]} Ne5 {[%emt 0:00:15]} 31. Bb2 {[%emt 0:01:44]} Qd1+ {[%emt 0:04:15]} 32. Bf1 {[%emt 0:00:22]} Qc2 {[%emt 0:00:00]} 33. Qa3 {[%emt 0:03:47]} Ng4 {[%emt 0:01:17]} 34. Bd4 {[%emt 0:00:31]} Qc7 {[%emt 0:00:21]} 35. Qa2 {[%emt 0:01:40]} Qd7 {[%emt 0:02:58]} 36. Qd5 {[%emt 0:02:29]} Qxd5 {[%emt 0:00:40]} 37. exd5 {[%emt 0:00:37]} Rc1 {[%emt 0:00:01]} 38. d6 {[%emt 0:00:19]} Rd1 {[%emt 0:00:03]} 39. Nf3 {[%emt 0:00:08]} Kf8 {[%emt 0:01:58]} 40. Kg2 {[%emt 0:00:27]} Rb1 {[%emt 0:00:05]} 41. Ne5 {[%emt 0:01:25]} Rd1 {[%emt 0:00:27]} 42. Nc6 {[%emt 0:00:52]} Ke8 {[%emt 0:00:10]} 43. Bb5 {[%emt 0:01:12]} Kd7 {[%emt 0:00:17]} 44. Bc5 {[%emt 0:00:11]} Nf6 {[%emt 0:00:34]} 45. Nd4+ {[%emt 0:01:54]} Kc8 {[%emt 0:00:01]} 46. Be2 {[%emt 0:00:09]} Rc1 {[%emt 0:00:37]} 47. Ba6+ {[%emt 0:00:19]} Kd7 {[%emt 0:00:33]} 48. Bb5+ {[%emt 0:00:04]} Kc8 {[%emt 0:00:03]} 49. Bb6 {[%emt 0:00:17]} Rc3 {[%emt 0:02:00]} 50. Bc7 {[%emt 0:00:37]} Rc5 {[%emt 0:00:59]} 51. Nc6 {[%emt 0:00:43]} Nd5 {[%emt 0:00:45]} 52. Ne7+ {[%emt 0:01:05]} Kb7 {[%emt 0:00:00]} 53. Nxd5 {[%emt 0:00:00]} 1-0

[Event "Mentese GM 2019"]
[Site "Mentese"]
[Date "2019.06.24"]
[Round "2.2"]
[White "Odeev, Handszar"]
[Black "Ozen, Deniz"]
[Result "0-1"]
[ECO "B04"]
[WhiteElo "2386"]
[BlackElo "2405"]
[Annotator "NA"]
[PlyCount "94"]
[EventDate "2019.06.24"]
[EventType "schev"]
[EventCountry "TUR"]
[SourceTitle "playchess.com"]
[Source "ChessBase"]
[SourceQuality "1"]
[TimeControl "5400+30"]

1. e4 {[%emt 0:00:30]} Nf6 {[%emt 0:00:30]} 2. e5 {[%emt 0:00:30]} Nd5 {[%emt 0:00:00]} 3. d4 {[%emt 0:00:30]} d6 {[%emt 0:00:00]} 4. Nf3 {[%emt 0:00:00]} g6 {[%emt 0:00:00]} 5. Bc4 {[%emt 0:01:00]} Nb6 {[%emt 0:00:00]} 6. Bb3 {[%emt 0:00:30]} Bg7 {[%emt 0:00:30]} 7. Qe2 {[%emt 0:06:30]} Nc6 {[%emt 0:01:30]} 8. O-O {[%emt 0:02:30]} dxe5 {[%emt 0:00:30]} 9. dxe5 {[%emt 0:00:30]} Nd4 {[%emt 0:00:30]} 10. Qe4 {[%emt 0:19:30]} Nxb3 {[%emt 0:07:30]} 11. axb3 {[%emt 0:00:30]} O-O {[%emt 0:04:30]} 12. Qh4 {[%emt 0:02:30]} f6 {[%emt 0:07:30]} 13. Nc3 {[%emt 0:03:30]} Bf5 {[%emt 0:05:30]} 14. Be3 {[%emt 0:05:30]} Qe8 {[%emt 0:16:30]} 15. Rfe1 {[%emt 0:02:30]} Qf7 {[%emt 0:08:30]} 16. Nb5 {[%emt 0:09:30]} Nd5 {[%emt 0:04:30]} 17. c4 {[%emt 0:04:30]} Nxe3 {[%emt 0:06:30]} 18. Rxe3 {[%emt 0:00:30]} g5 {[%emt 0:14:30]} 19. Qg3 {[%emt 0:00:00]} Rac8 {[%emt 0:10:42]} 20. Nxc7 {[%emt 0:03:00]} fxe5 {[%emt 0:02:00]} 21. Nxg5 {[%emt 0:02:30]} Qf6 {[%emt 0:02:28]} 22. Nd5 {[%emt 0:01:30]} Qd6 {[%emt 0:00:05]} 23. Ne4 {[%emt 0:02:30]} Qd7 {[%emt 0:03:39]} 24. Qh4 {[%emt 0:05:30]} Rf7 {[%emt 0:00:46]} 25. h3 {[%emt 0:04:30]} Bxe4 {[%emt 0:00:13]} 26. Rxe4 {[%emt 0:01:30]} e6 {[%emt 0:00:08]} 27. Nc3 {[%emt 0:05:01]} Rcf8 {[%emt 0:01:03]} 28. Re2 {[%emt 0:03:47]} Rf4 {[%emt 0:00:41]} 29. Qg3 {[%emt 0:00:32]} Qc6 {[%emt 0:00:36]} 30. Rxa7 {[%emt 0:08:16]} Kh8 {[%emt 0:00:54]} 31. Qe3 {[%emt 0:00:29]} Rd4 {[%emt 0:01:28]} 32. Ra5 {[%emt 0:00:11]} Qd7 {[%emt 0:00:25]} 33. Rb5 {[%emt 0:01:15]} Rd3 {[%emt 0:00:26]} 34. Qb6 {[%emt 0:00:57]} Rxc3 {[%emt 0:00:06]} 35. Kh2 {[%emt 0:01:53]} Qd1 {[%emt 0:01:05]} 36. Re4 {[%emt 0:03:08]} Rc1 {[%emt 0:00:40]} 37. Kg3 {[%emt 0:00:27]} Qd3+ {[%emt 0:00:49]} 38. Qe3 {[%emt 0:00:07]} Qxe3+ {[%emt 0:00:11]} 39. Rxe3 {[%emt 0:00:04]} Rf7 {[%emt 0:00:26]} 40. Rb6 {[%emt 0:00:27]} Rc2 {[%emt 0:00:46]} 41. f3 {[%emt 0:00:38]} Bh6 {[%emt 0:00:17]} 42. Rd3 {[%emt 0:01:14]} Bf4+ {[%emt 0:00:33]} 43. Kh4 {[%emt 0:00:07]} Rxg2 {[%emt 0:00:18]} 44. Rxe6 {[%emt 0:00:07]} Bg5+ {[%emt 0:01:05]} 45. Kh5 {[%emt 0:00:09]} Rf5 {[%emt 0:00:18]} 46. Re8+ {[%emt 0:00:16]} Kg7 {[%emt 0:00:08]} 47. Rd7+ {[%emt 0:00:03]} Be7# {[%emt 0:00:05]} 0-1

[Event "Mentese GM 2019"]
[Site "Mentese"]
[Date "2019.06.24"]
[Round "2.3"]
[White "Simantsev, Mikhail"]
[Black "Atakisi, Umut"]
[Result "0-1"]
[ECO "D45"]
[WhiteElo "2371"]
[BlackElo "2388"]
[Annotator "NA"]
[PlyCount "46"]
[EventDate "2019.06.24"]
[EventType "schev"]
[EventCountry "TUR"]
[SourceTitle "playchess.com"]
[Source "ChessBase"]
[SourceQuality "1"]
[TimeControl "5400+30"]

1. d4 {[%emt 0:00:30]} d5 {[%emt 0:00:30]} 2. c4 {[%emt 0:00:00]} c6 {[%emt 0:00:00]} 3. Nc3 {[%emt 0:00:00]} Nf6 {[%emt 0:00:00]} 4. e3 {[%emt 0:00:00]} e6 {[%emt 0:00:30]} 5. Nf3 {[%emt 0:00:00]} Nbd7 {[%emt 0:00:00]} 6. Qc2 {[%emt 0:00:00]} Bd6 {[%emt 0:00:00]} 7. Be2 {[%emt 0:02:00]} O-O {[%emt 0:00:30]} 8. O-O {[%emt 0:00:00]} b6 {[%emt 0:00:30]} 9. b3 {[%emt 0:00:00]} Bb7 {[%emt 0:00:00]} 10. Bb2 {[%emt 0:00:30]} Qe7 {[%emt 0:00:00]} 11. Rad1 {[%emt 0:00:00]} Rad8 {[%emt 0:00:30]} 12. Rfe1 {[%emt 0:00:00]} Rfe8 {[%emt 0:00:30]} 13. Bf1 {[%emt 0:02:30]} e5 {[%emt 0:01:30]} 14. cxd5 {[%emt 0:08:30]} e4 {[%emt 0:03:30]} 15. dxc6 {[%emt 0:01:30]} exf3 {[%emt 0:00:30]} 16. cxb7 {[%emt 0:00:00]} Bxh2+ {[%emt 0:00:30]} 17. Kxh2 {[%emt 0:01:00]} Qd6+ {[%emt 0:01:30]} 18. Kh3 {[%emt 0:01:30]} Re5 {[%emt 0:00:30]} 19. dxe5 {[%emt 0:45:30]} Qe6+ {[%emt 0:01:30]} 20. Kh2 {[%emt 0:00:30]} Qxe5+ {[%emt 0:00:30]} 21. Kh3 {[%emt 0:01:30]} Qh5+ {[%emt 0:00:30]} 22. Kg3 {[%emt 0:00:30]} Qg4+ {[%emt 0:00:00]} 23. Kh2 {[%emt 0:00:00]} Qh4+ {[%emt 0:00:00]} 0-1

[Event "Mentese GM 2019"]
[Site "Mentese"]
[Date "2019.06.24"]
[Round "2.4"]
[White "Sevdimaliyev, Urfan"]
[Black "Sibashvili, Giorgi"]
[Result "1/2-1/2"]
[ECO "B33"]
[WhiteElo "2362"]
[BlackElo "2368"]
[Annotator "NA"]
[PlyCount "64"]
[EventDate "2019.06.24"]
[EventType "schev"]
[EventCountry "TUR"]
[SourceTitle "playchess.com"]
[Source "ChessBase"]
[SourceQuality "1"]
[TimeControl "5400+30"]

1. e4 {[%emt 0:00:30]} c5 {[%emt 0:00:30]} 2. Nf3 {[%emt 0:00:00]} Nc6 {[%emt 0:00:00]} 3. d4 {[%emt 0:00:00]} cxd4 {[%emt 0:00:00]} 4. Nxd4 {[%emt 0:00:30]} Nf6 {[%emt 0:00:00]} 5. Nc3 {[%emt 0:00:30]} e5 {[%emt 0:00:00]} 6. Ndb5 {[%emt 0:00:30]} d6 {[%emt 0:00:30]} 7. Bg5 {[%emt 0:00:30]} a6 {[%emt 0:00:00]} 8. Na3 {[%emt 0:00:00]} b5 {[%emt 0:00:00]} 9. Nd5 {[%emt 0:01:00]} Be7 {[%emt 0:00:30]} 10. Bxf6 {[%emt 0:00:30]} Bxf6 {[%emt 0:00:00]} 11. c3 {[%emt 0:00:00]} Rb8 {[%emt 0:00:00]} 12. Nc2 {[%emt 0:01:00]} Bg5 {[%emt 0:00:30]} 13. a4 {[%emt 0:06:30]} bxa4 {[%emt 0:00:30]} 14. Ncb4 {[%emt 0:00:30]} Bd7 {[%emt 0:03:30]} 15. Bxa6 {[%emt 0:04:30]} Nxb4 {[%emt 0:00:30]} 16. cxb4 {[%emt 0:01:30]} O-O {[%emt 0:01:30]} 17. O-O {[%emt 0:04:30]} Bc6 {[%emt 0:02:30]} 18. Bc4 {[%emt 0:05:30]} Bxd5 {[%emt 0:01:30]} 19. Bxd5 {[%emt 0:00:30]} Rxb4 {[%emt 0:00:00]} 20. Rxa4 {[%emt 0:00:30]} Rxb2 {[%emt 0:00:00]} 21. Qf3 {[%emt 0:10:30]} Qb6 {[%emt 0:44:30]} 22. Ra8 {[%emt 0:06:30]} Qc7 {[%emt 0:05:30]} 23. Rxf8+ {[%emt 0:07:30]} Kxf8 {[%emt 0:00:30]} 24. Qf5 {[%emt 0:02:30]} h6 {[%emt 0:02:30]} 25. Qh7 {[%emt 0:04:30]} Rxf2 {[%emt 0:16:30]} 26. Kxf2 {[%emt 0:17:30]} Qc5+ {[%emt 0:00:00]} 27. Kg3 {[%emt 0:00:30]} Qe3+ {[%emt 0:00:00]} 28. Kg4 {[%emt 0:03:30]} Qe2+ {[%emt 0:01:30]} 29. Rf3 {[%emt 0:01:30]} Qxg2+ {[%emt 0:00:30]} 30. Rg3 {[%emt 0:01:30]} Qe2+ {[%emt 0:02:02]} 31. Kh3 {[%emt 0:00:30]} Qh5+ {[%emt 0:02:04]} 32. Kg2 {[%emt 0:00:00]} Qe2+ {[%emt 0:00:04]} 1/2-1/2

[Event "Mentese GM 2019"]
[Site "Mentese"]
[Date "2019.06.24"]
[Round "2.5"]
[White "Maghalashvili, Davit"]
[Black "Alumert, Orkun Efe"]
[Result "1-0"]
[ECO "A49"]
[WhiteElo "2500"]
[BlackElo "2008"]
[Annotator "ChessBase"]
[PlyCount "49"]
[EventDate "2019.06.24"]
[EventType "schev"]
[EventCountry "TUR"]
[SourceTitle "playchess.com"]
[Source "ChessBase"]
[SourceQuality "1"]
[TimeControl "5400+30"]

1. Nf3 {[%emt 0:00:30]} Nf6 {[%emt 0:00:30]} 2. g3 {[%emt 0:00:00]} g6 {[%emt 0:00:30]} 3. b3 {[%emt 0:01:00]} Bg7 {[%emt 0:00:30]} 4. Bb2 {[%emt 0:00:00]} O-O {[%emt 0:00:30]} 5. Bg2 {[%emt 0:00:00]} d6 {[%emt 0:00:30]} 6. d4 {[%emt 0:00:30]} c5 {[%emt 0:00:30]} 7. O-O {[%emt 0:01:30]} cxd4 {[%emt 0:00:30]} 8. Nxd4 {[%emt 0:00:00]} d5 {[%emt 0:00:30]} 9. Na3 {[%emt 0:02:00]} b6 {[%emt 0:04:30]} 10. c4 {[%emt 0:01:30]} Bb7 {[%emt 0:00:30]} 11. Rc1 {[%emt 0:00:30]} Qd7 {[%emt 0:02:30]} 12. Ndb5 {[%emt 0:04:30]} a6 {[%emt 0:08:30]} 13. Nc3 {[%emt 0:03:30]} Rd8 {[%emt 0:07:30]} 14. Nxd5 {[%emt 0:08:30]} Nxd5 {[%emt 0:06:30]} 15. Bxg7 {[%emt 0:00:30]} Kxg7 {[%emt 0:00:30]} 16. cxd5 {[%emt 0:00:30]} Bxd5 {[%emt 0:01:30]} 17. Qd4+ {[%emt 0:04:30]} f6 {[%emt 0:01:30]} 18. Bxd5 {[%emt 0:00:30]} Qxd5 {[%emt 0:00:00]} 19. Qxb6 {[%emt 0:00:30]} Rd6 {[%emt 0:00:00]} 20. Qc5 {[%emt 0:08:30]} Qxc5 {[%emt 0:01:30]} 21. Rxc5 {[%emt 0:00:30]} Rd2 {[%emt 0:02:30]} 22. Rc8 {[%emt 0:03:30]} Rd7 {[%emt 0:01:30]} 23. Nc4 {[%emt 0:01:30]} Rb7 {[%emt 0:01:30]} 24. Na5 {[%emt 0:01:30]} Rba7 {[%emt 0:00:00]} 25. Rd1 {[%emt 0:00:30]} 1-0

[Event "Mentese GM 2019"]
[Site "Mentese"]
[Date "2019.06.25"]
[Round "3.5"]
[White "Alumert, Orkun Efe"]
[Black "Bagaturov, Giorgi"]
[Result "1/2-1/2"]
[ECO "B52"]
[WhiteElo "2008"]
[BlackElo "2422"]
[Annotator "NA"]
[PlyCount "62"]
[EventDate "2019.06.24"]
[EventType "schev"]
[EventCountry "TUR"]
[SourceTitle "playchess.com"]
[Source "ChessBase"]
[SourceQuality "1"]
[TimeControl "5400+30"]

1. e4 {[%emt 0:00:30]} c5 {[%emt 0:00:30]} 2. Nf3 {[%emt 0:00:30]} d6 {[%emt 0:00:30]} 3. Bb5+ {[%emt 0:00:30]} Bd7 {[%emt 0:01:30]} 4. Bxd7+ {[%emt 0:00:30]} Qxd7 {[%emt 0:00:30]} 5. O-O {[%emt 0:00:30]} Nc6 {[%emt 0:00:30]} 6. c3 {[%emt 0:00:00]} Nf6 {[%emt 0:00:30]} 7. Re1 {[%emt 0:00:00]} e6 {[%emt 0:00:30]} 8. d4 {[%emt 0:00:30]} cxd4 {[%emt 0:00:30]} 9. cxd4 {[%emt 0:00:00]} d5 {[%emt 0:00:30]} 10. e5 {[%emt 0:00:00]} Ne4 {[%emt 0:00:00]} 11. Nbd2 {[%emt 0:00:00]} Nxd2 {[%emt 0:00:00]} 12. Bxd2 {[%emt 0:00:00]} Bb4 {[%emt 0:01:30]} 13. Rc1 {[%emt 0:00:30]} Bxd2 {[%emt 0:00:30]} 14. Qxd2 {[%emt 0:00:30]} O-O {[%emt 0:00:30]} 15. Rc3 {[%emt 0:00:00]} Rac8 {[%emt 0:00:30]} 16. Rec1 {[%emt 0:00:00]} Ne7 {[%emt 0:00:30]} 17. Rxc8 {[%emt 0:00:30]} Rxc8 {[%emt 0:00:30]} 18. Rxc8+ {[%emt 0:00:00]} Qxc8 {[%emt 0:00:00]} 19. h3 {[%emt 0:01:00]} h6 {[%emt 0:00:00]} 20. b3 {[%emt 0:00:00]} Nc6 {[%emt 0:01:30]} 21. Qc3 {[%emt 0:00:00]} Ne7 {[%emt 0:00:30]} 22. Qxc8+ {[%emt 0:00:30]} Nxc8 {[%emt 0:00:00]} 23. Kf1 {[%emt 0:00:00]} Kf8 {[%emt 0:00:00]} 24. Ke2 {[%emt 0:00:00]} Ke8 {[%emt 0:00:30]} 25. Kd3 {[%emt 0:00:30]} Kd7 {[%emt 0:00:00]} 26. Ne1 {[%emt 0:00:00]} Ne7 {[%emt 0:00:00]} 27. f4 {[%emt 0:00:00]} h5 {[%emt 0:00:30]} 28. g4 {[%emt 0:00:30]} hxg4 {[%emt 0:00:30]} 29. hxg4 {[%emt 0:00:00]} Ng6 {[%emt 0:00:30]} 30. Ng2 {[%emt 0:00:00]} Ne7 {[%emt 0:00:00]} 31. Ne3 {[%emt 0:00:30]} Ng6 {[%emt 0:00:00]} 1/2-1/2

[Event "Mentese GM 2019"]
[Site "Mentese"]
[Date "2019.06.25"]
[Round "4.1"]
[White "Simantsev, Mikhail"]
[Black "Annaberdiev, Meilis"]
[Result "1/2-1/2"]
[ECO "A41"]
[WhiteElo "2371"]
[BlackElo "2532"]
[Annotator "ChessBase"]
[PlyCount "69"]
[EventDate "2019.06.24"]
[EventType "schev"]
[EventCountry "TUR"]
[SourceTitle "playchess.com"]
[Source "ChessBase"]
[SourceQuality "1"]
[TimeControl "5400+30"]

1. d4 {[%emt 0:00:30]} d6 {[%emt 0:00:30]} 2. Nf3 {[%emt 0:00:30]} g6 {[%emt 0:00:00]} 3. c4 {[%emt 0:01:30]} Bg7 {[%emt 0:00:00]} 4. Nc3 {[%emt 0:00:30]} Bg4 {[%emt 0:00:00]} 5. g3 {[%emt 0:04:30]} Bxf3 {[%emt 0:04:00]} 6. exf3 {[%emt 0:01:30]} Nh6 {[%emt 0:00:30]} 7. g4 {[%emt 0:09:30]} Ng8 {[%emt 0:08:30]} 8. Be3 {[%emt 0:04:30]} Nd7 {[%emt 0:04:30]} 9. Bg2 {[%emt 0:07:30]} e6 {[%emt 0:03:30]} 10. f4 {[%emt 0:07:30]} Ne7 {[%emt 0:05:30]} 11. Qe2 {[%emt 0:05:30]} c6 {[%emt 0:05:30]} 12. h4 {[%emt 0:17:30]} h5 {[%emt 0:10:30]} 13. gxh5 {[%emt 0:00:30]} Rxh5 {[%emt 0:00:00]} 14. Bf3 {[%emt 0:00:30]} Nf6 {[%emt 0:00:00]} 15. O-O-O {[%emt 0:10:30]} d5 {[%emt 0:04:30]} 16. cxd5 {[%emt 0:02:30]} cxd5 {[%emt 0:01:30]} 17. Qb5+ {[%emt 0:00:30]} Qd7 {[%emt 0:00:30]} 18. Qxd7+ {[%emt 0:00:30]} Kxd7 {[%emt 0:00:30]} 19. Bxh5 {[%emt 0:01:30]} Nxh5 {[%emt 0:00:00]} 20. Ne2 {[%emt 0:01:30]} Nf5 {[%emt 0:00:00]} 21. Rh3 {[%emt 0:07:51]} Bf6 {[%emt 0:03:30]} 22. Rdh1 {[%emt 0:01:52]} Rh8 {[%emt 0:00:30]} 23. Kd2 {[%emt 0:00:41]} Nhg7 {[%emt 0:00:30]} 24. Kd3 {[%emt 0:00:24]} Rxh4 {[%emt 0:07:30]} 25. Rxh4 {[%emt 0:00:16]} Bxh4 {[%emt 0:00:00]} 26. Ng1 {[%emt 0:02:09]} Nh5 {[%emt 0:01:00]} 27. Nf3 {[%emt 0:00:10]} Bd8 {[%emt 0:00:30]} 28. Ne5+ {[%emt 0:00:30]} Ke8 {[%emt 0:00:30]} 29. Rc1 {[%emt 0:00:12]} Ne7 {[%emt 0:00:00]} 30. Bd2 {[%emt 0:04:46]} a5 {[%emt 0:11:00]} 31. a3 {[%emt 0:00:47]} f6 {[%emt 0:04:30]} 32. Nf3 {[%emt 0:00:01]} Kd7 {[%emt 0:00:30]} 33. Nh4 {[%emt 0:00:37]} Ke8 {[%emt 0:00:00]} 34. Nf3 {[%emt 0:00:17]} Kd7 {[%emt 0:00:00]} 35. Nh4 {[%emt 0:00:52]} 1/2-1/2

[Event "Mentese GM 2019"]
[Site "Mentese"]
[Date "2019.06.25"]
[Round "4.2"]
[White "Sevdimaliyev, Urfan"]
[Black "Ozen, Deniz"]
[Result "1/2-1/2"]
[ECO "C07"]
[WhiteElo "2362"]
[BlackElo "2405"]
[Annotator "NA"]
[PlyCount "64"]
[EventDate "2019.06.24"]
[EventType "schev"]
[EventCountry "TUR"]
[SourceTitle "playchess.com"]
[Source "ChessBase"]
[SourceQuality "1"]
[TimeControl "5400+30"]

1. e4 {[%emt 0:00:30]} e6 {[%emt 0:00:30]} 2. d4 {[%emt 0:00:00]} d5 {[%emt 0:00:00]} 3. Nd2 {[%emt 0:00:00]} c5 {[%emt 0:00:00]} 4. exd5 {[%emt 0:00:30]} Qxd5 {[%emt 0:00:30]} 5. Ngf3 {[%emt 0:00:30]} cxd4 {[%emt 0:00:30]} 6. Bc4 {[%emt 0:00:30]} Qd7 {[%emt 0:00:00]} 7. O-O {[%emt 0:00:30]} Nc6 {[%emt 0:00:00]} 8. Nb3 {[%emt 0:00:30]} a6 {[%emt 0:00:30]} 9. a4 {[%emt 0:03:30]} Nf6 {[%emt 0:03:30]} 10. Qe2 {[%emt 0:02:30]} Bd6 {[%emt 0:04:30]} 11. Rd1 {[%emt 0:00:30]} O-O {[%emt 0:01:30]} 12. Nbxd4 {[%emt 0:01:30]} e5 {[%emt 0:02:30]} 13. Nxc6 {[%emt 0:09:30]} Qxc6 {[%emt 0:00:30]} 14. Bg5 {[%emt 0:02:30]} Bc7 {[%emt 0:00:30]} 15. Bb5 {[%emt 0:14:30]} Qe6 {[%emt 0:10:30]} 16. Bc4 {[%emt 0:03:30]} Qf5 {[%emt 0:05:30]} 17. Bxf6 {[%emt 0:01:30]} Qxf6 {[%emt 0:00:00]} 18. Bd5 {[%emt 0:02:30]} Rb8 {[%emt 0:08:00]} 19. Ra3 {[%emt 0:09:30]} Bf5 {[%emt 0:16:30]} 20. Re3 {[%emt 0:11:30]} e4 {[%emt 0:07:30]} 21. Bxe4 {[%emt 0:05:30]} Bb6 {[%emt 0:00:30]} 22. Rb3 {[%emt 0:05:30]} Rbe8 {[%emt 0:00:30]} 23. Nd2 {[%emt 0:02:30]} Qd4 {[%emt 0:16:30]} 24. Nf3 {[%emt 0:01:30]} Qf6 {[%emt 0:00:30]} 25. Nd2 {[%emt 0:00:00]} Qd4 {[%emt 0:00:00]} 26. Nf3 {[%emt 0:00:00]} Qf6 {[%emt 0:00:00]} 27. Nd2 {[%emt 0:00:00]} Qd4 {[%emt 0:00:00]} 28. Nf3 {[%emt 0:00:00]} Qf6 {[%emt 0:00:00]} 29. Nd2 {[%emt 0:00:30]} Qd4 {[%emt 0:00:00]} 30. Nf3 {[%emt 0:00:00]} Qf6 {[%emt 0:00:00]} 31. Nd2 {[%emt 0:00:00]} Qd4 {[%emt 0:00:30]} 32. c3 {[%emt 0:00:30]} Qxf2+ {[%emt 0:00:30]} 1/2-1/2

[Event "Mentese GM 2019"]
[Site "Mentese"]
[Date "2019.06.25"]
[Round "4.3"]
[White "Maghalashvili, Davit"]
[Black "Atakisi, Umut"]
[Result "1/2-1/2"]
[ECO "D02"]
[WhiteElo "2500"]
[BlackElo "2388"]
[Annotator "ChessBase"]
[PlyCount "60"]
[EventDate "2019.06.24"]
[EventType "schev"]
[EventCountry "TUR"]
[SourceTitle "playchess.com"]
[Source "ChessBase"]
[SourceQuality "1"]
[TimeControl "5400+30"]

1. Nf3 {[%emt 0:00:30]} d5 {[%emt 0:00:30]} 2. g3 {[%emt 0:00:00]} g6 {[%emt 0:00:00]} 3. Bg2 {[%emt 0:00:00]} Bg7 {[%emt 0:00:00]} 4. d4 {[%emt 0:01:30]} Nf6 {[%emt 0:00:30]} 5. O-O {[%emt 0:00:30]} O-O {[%emt 0:00:00]} 6. c3 {[%emt 0:00:30]} c6 {[%emt 0:00:00]} 7. Bf4 {[%emt 0:00:00]} Bf5 {[%emt 0:01:30]} 8. Nbd2 {[%emt 0:00:00]} Nbd7 {[%emt 0:02:30]} 9. Nh4 {[%emt 0:06:30]} Be6 {[%emt 0:01:30]} 10. e4 {[%emt 0:00:30]} Nxe4 {[%emt 0:01:30]} 11. Nxe4 {[%emt 0:02:30]} dxe4 {[%emt 0:02:30]} 12. Bxe4 {[%emt 0:00:00]} Nf6 {[%emt 0:09:30]} 13. Bg2 {[%emt 0:01:00]} Bd5 {[%emt 0:00:30]} 14. Nf3 {[%emt 0:00:30]} Re8 {[%emt 0:03:30]} 15. Re1 {[%emt 0:01:30]} Qb6 {[%emt 0:01:30]} 16. Qe2 {[%emt 0:00:30]} Rad8 {[%emt 0:02:30]} 17. a4 {[%emt 0:07:30]} a5 {[%emt 0:04:30]} 18. Be5 {[%emt 0:03:30]} Nd7 {[%emt 0:00:30]} 19. Bxg7 {[%emt 0:01:30]} Kxg7 {[%emt 0:00:30]} 20. h4 {[%emt 0:01:30]} h6 {[%emt 0:09:30]} 21. Bh3 {[%emt 0:04:30]} Bxf3 {[%emt 0:06:30]} 22. Qxf3 {[%emt 0:00:30]} e6 {[%emt 0:00:30]} 23. b4 {[%emt 0:12:30]} Nf6 {[%emt 0:11:30]} 24. Rab1 {[%emt 0:06:30]} axb4 {[%emt 0:01:30]} 25. Rxb4 {[%emt 0:00:30]} Qa7 {[%emt 0:01:30]} 26. Reb1 {[%emt 0:03:30]} Re7 {[%emt 0:00:30]} 27. Bg2 {[%emt 0:03:30]} Rd5 {[%emt 0:00:30]} 28. Qd1 {[%emt 0:06:30]} Ra5 {[%emt 0:02:30]} 29. Qb3 {[%emt 0:07:30]} Nd5 {[%emt 0:00:30]} 30. Bxd5 {[%emt 0:00:30]} exd5 {[%emt 0:02:30]} 1/2-1/2